[Event "5th Baskent University Open 2022"]
[Site "Ankara"]
[Date "2022.07.06"]
[Round "8.17"]
[White "Primbetov, Marat"]
[Black "Eke, Salih"]
[Result "1-0"]
[ECO "B31"]
[WhiteElo "2186"]
[BlackElo "2195"]
[Annotator "TA"]
[PlyCount "129"]
[EventDate "2022.07.02"]
[EventType "swiss"]
[EventCountry "TUR"]
[SourceTitle "playchess.com"]
[Source "ChessBase"]
[SourceQuality "1"]
[TimeControl "5400+30"]

{[%evp 19,128,56,72,41,47,40,35,14,41,40,105,97,99,105,130,128,119,58,105,119,124,102,121,116,126,111,152,125,169,169,175,174,174,76,154,143,165,159,164,123,156,101,200,169,177,52,35,52,116,84,204,129,164,164,155,170,180,116,118,62,120,83,103,75,62,0,317,306,295,285,353,348,384,370,341,169,393,394,730,683,522,291,269,0,29967,29966,2515,0,0,0,0,0,0,0,323,290,6127,5912,29994,29995,29995,29994,29996,29996,29996,29997,29997,29998,29998,29999,29999]} 1. e4 {[%emt 0:04:00]} c5 {[%emt 0:01:00]} 2. Nf3 {[%emt 0:00:00]} Nc6 {[%emt 0:00:30]} 3. Bb5 {[%emt 0:04:00]} g6 {[%emt 0:07:30]} 4. O-O {[%emt 0:01:30]} Bg7 {[%emt 0:00:30]} 5. c3 {[%emt 0:00:30]} Nf6 {[%emt 0:00:30]} 6. Re1 {[%emt 0:01:30]} O-O {[%emt 0:01:30]} 7. h3 {[%emt 0:00:30]} d5 {[%emt 0:03:30]} 8. e5 {[%emt 0:00:30]} Ne8 {[%emt 0:00:30]} 9. d4 {[%emt 0:06:30]} cxd4 {[%emt 0:10:30] 9...Nc7 deserves study.} 10. cxd4 {[%emt 0:00:30]} Nc7 {[%emt 0:00:00]} 11. Ba4 {[%emt 0:11:30] B31: Sicilian: 2...Nc6 3 Bb5 g6.} b5 {[%emt 0:03:00]} 12. Bb3 {[%emt 0:04:30]} a5 {[%emt 0:00:30] [#]} 13. a3 $146 {[%emt 0:02:30] White is slightly better.} ({Predecessor:} 13. Nc3 a4 14. Bc2 Rb8 15. Be3 Na5 16. b3 a3 17. Rc1 Bd7 18. Qd2 b4 19. Ne2 {1-0 (44) Zubov,A (2597)-Birnboim,N (2379) Netanya 2019}) 13... Ba6 {[%emt 0:11:30]} (13... a4 $5 {[%cal Ra4b3]} 14. Bc2 f6 $11) 14. Nc3 {[%emt 0:01:30]} b4 {[%emt 0:02:30]} (14... Qd7 $14) 15. Na4 $1 $16 {[%emt 0:02:30]} Ne6 {[%emt 0:00:30]} 16. Be3 {[%emt 0:00:30]} bxa3 {[%emt 0:16:30]} 17. bxa3 {[%emt 0:00:30]} Na7 {[%emt 0:00:30]} 18. Nc3 {[%emt 0:03:30]} (18. h4 $16) 18... Nc7 {[%emt 0:00:30]} (18... Nb5 $14 19. Nxd5 Bb7) 19. Qd2 {[%emt 0:00:30]} Rb8 {[%emt 0:01:30]} 20. Qa2 {[%emt 0:04:30]} e6 {[%emt 0:06:30]} 21. Na4 {[%emt 0:02:30]} Nc8 {[%emt 0:01:30]} 22. Bd2 {[%emt 0:03:30]} Na8 {[%emt 0:03:30]} 23. Rac1 {[%emt 0:00:30]} Bb5 {[%emt 0:07:30]} 24. Nc5 {[%emt 0:02:30]} Ne7 {[%emt 0:00:30]} 25. a4 {[%emt 0:02:30]} Be8 {[%emt 0:00:30]} 26. Be3 {[%emt 0:08:30]} (26. h4 $18 {has better winning chances.}) 26... Nc6 {[%emt 0:00:30]} (26... Nb6 $142) 27. Qd2 {[%emt 0:00:00]} Qb6 {[%emt 0:02:14]} 28. Rb1 {[%emt 0:01:00]} Qa7 {[%emt 0:01:28]} 29. Rec1 {[%emt 0:00:30]} Nc7 {[%emt 0:00:30]} 30. Bh6 {[%emt 0:00:30] 0x0.001f2315c706dp-1022s more active pieces.} (30. Nh2 $142) 30... Na6 {[%emt 0:01:32]} (30... Rb4 $16 {keeps fighting.}) 31. Nxa6 $1 $18 {[%emt 0:07:30]} Qxa6 {[%emt 0:00:30]} 32. Bxg7 {[%emt 0:00:30]} (32. Nh2 $1 $18 {Strongly threatening Bxg7.} Bxh6 33. Qxh6) 32... Kxg7 $14 {[%emt 0:00:47]} 33. h4 {[%emt 0:04:30][%cal Bh3h4,Bh4h5][%mdl 32]} Nb4 {[%emt 0:02:52]} (33... h5 $14) 34. Rc3 {[%emt 0:01:30][%cal Oh4h5]} Qb6 {[%emt 0:03:39]} (34... Rc8 $16) 35. Rbc1 {[%emt 0:01:57]} Nc6 {[%emt 0:00:11]} 36. h5 {[%emt 0:01:56]} h6 {[%emt 0:00:30]} 37. Bd1 {[%emt 0:01:35]} (37. Qf4 $6 Qd8 $16) 37... Bd7 {[%emt 0:01:01]} 38. Bc2 {[%emt 0:01:36]} (38. Qf4 Qd8 $16) ({White should play} 38. Be2 $18) 38... Qd8 $16 {[%emt 0:00:34]} 39. Bb1 {[%emt 0:02:06]} (39. Bd3 $1 $16) 39... Rb6 {[%emt 0:00:13]} (39... Rb4 $14) 40. Rc5 {[%emt 0:00:25]} g5 {[%emt 0:01:35]} 41. Qd3 {[%emt 0:00:56][%csl Gb1][%cal Rd3h7]} Rh8 {[%emt 0:00:01] Against Qh7+} 42. Nh2 {[%emt 0:02:47]} ({Better is} 42. Qd1 $1 $14) 42... Rb4 $2 {[%emt 0:02:23][%mdl 8192]} (42... Qb8 $1 $11) 43. Rxc6 $18 {[%emt 0:02:18]} Bxc6 {[%emt 0:00:30]} 44. Rxc6 {[%emt 0:00:00] Black must now prevent Ng4.} Qd7 {[%emt 0:00:15]} 45. Rc1 {[%emt 0:00:18]} Rxa4 {[%emt 0:00:25][%cal Oa4c4]} 46. Ng4 {[%emt 0:00:55] Hoping for Qf3.} Rc4 {[%emt 0:01:29]} 47. Rd1 {[%emt 0:03:36]} (47. Rxc4 $142 dxc4 48. Qf3 (48. Qxc4 a4 $18)) 47... a4 $2 {[%emt 0:00:13]} (47... Qe7 48. Rf1 a4) 48. Ba2 {[%emt 0:00:19]} ({Less strong is} 48. Qf3 Qe7 $16) 48... Rb4 $2 {[%emt 0:00:16]} (48... Rc7 49. f4 gxf4) 49. Qf3 {[%emt 0:01:28] Qf6+ is the strong threat.} Qe7 {[%emt 0:00:40]} 50. Rc1 {[%emt 0:02:46] Threatens to win with Qf6+.} Rhb8 {[%emt 0:00:34]} 51. Nf6 $2 {[%emt 0:01:44]} (51. Qd3 $18 {aiming for Nf6.} Qb7 52. Nf6) 51... Rb2 $2 {[%emt 0:00:02][%mdl 8192] [#]} (51... Rxd4 $11 52. g3 Rd2) 52. Qd3 $1 {[%emt 0:00:30]} Rh8 {[%emt 0:00:20] [#]} (52... Kf8 53. Qh7) 53. Ra1 $2 {[%emt 0:00:01]} (53. Rc8 $3 $18 {[%cal Od3h7][%mdl 512] White threatens Qh7+! and mate.} Qd8 54. Rxd8 Rxd8 55. Qh7+ Kf8 56. Qxh6+ Ke7 57. Qxg5 $1) 53... Qb4 {[%emt 0:00:42][%cal Ob2f2] And now ...Rxf2! would win.} 54. Bxd5 {[%emt 0:00:35] Really sharp!} exd5 {[%emt 0:00:31]} 55. Nxd5 {[%emt 0:00:31]} Qb3 {[%emt 0:00:15]} 56. Qe4 {[%emt 0:00:32]} Rb8 $2 {[%emt 0:00:18][%mdl 8192] [#]} (56... Rd8 $11 57. Ne3 (57. Nf6 Qc2 $17) 57... Kg8) 57. e6 $1 {[%emt 0:00:41] White wants to mate with Qe5+.} Rb1+ $2 {[%emt 0:02:46] [#]} (57... Re2 58. Qxe2 Qxd5 59. exf7 Rf8 60. Rxa4 Qxf7) 58. Kh2 $1 {[%emt 0:00:03] Threatening mate with Qe5+.} Rxa1 {[%emt 0:04:29]} 59. Qe5+ {[%emt 0:00:48] White mates.} Kh7 {[%emt 0:00:22]} 60. Qf5+ {[%emt 0:00:08]} Kg8 {[%emt 0:00:51]} 61. Qxf7+ {[%emt 0:00:48]} Kh8 {[%emt 0:00:30]} 62. Qf6+ {[%emt 0:00:00]} Kh7 {[%emt 0:00:00]} 63. Qg6+ {[%emt 0:00:30][%mdl 64] Deflection} Kh8 {[%emt 0:00:00]} 64. Qxh6+ {[%emt 0:00:23]} Kg8 {[%emt 0:00:11]} 65. Nf6# {[%emt 0:00:00] Weighted Error Value: White=0.40/Black=0.67} 1-0

[Event "5th Baskent University Open 2022"]
[Site "Ankara"]
[Date "2022.07.06"]
[Round "8.18"]
[White "Yerden, Huseyin Eren"]
[Black "Cansu, Batuhan"]
[Result "0-1"]
[ECO "D78"]
[WhiteElo "2050"]
[BlackElo "2083"]
[Annotator "TA"]
[PlyCount "106"]
[EventDate "2022.07.02"]
[EventType "swiss"]
[EventCountry "TUR"]
[SourceTitle "playchess.com"]
[Source "ChessBase"]
[SourceQuality "1"]
[TimeControl "5400+30"]

{[%evp 12,106,15,5,8,0,0,-52,-45,-85,-30,-52,-46,-38,0,0,42,31,41,36,31,42,50,65,66,53,56,47,206,60,51,20,53,17,25,0,0,0,0,-8,0,0,0,-63,-61,-72,0,-8,-16,-147,0,-117,-109,-122,-64,-131,-48,-65,-58,-113,-58,-158,-171,-167,-170,-175,-174,-204,-195,-457,-368,-489,-483,-462,-469,-466,-472,-479,-469,-429,0,0,0,0,0,-824,-823,-799,-766,-766,-624,-624,-616,-616,-608,-608,-568]} 1. d4 {[%emt 0:01:00]} Nf6 {[%emt 0:01:00]} 2. c4 {[%emt 0:00:00]} g6 {[%emt 0:00:30]} 3. g3 {[%emt 0:00:00]} c6 {[%emt 0:00:00]} 4. Bg2 {[%emt 0:00:30]} d5 {[%emt 0:00:00]} 5. Nf3 {[%emt 0:00:00]} Bg7 {[%emt 0:00:00]} 6. O-O {[%emt 0:01:00]} O-O {[%emt 0:00:00]} 7. Ne5 {[%emt 0:00:30]} Ne4 {[%emt 0:09:30][%cal Bf6e4,Be4d6,Bd6f5][%mdl 32] 7...Ng4 gains popularity. D78: Fianchetto Grünfeld: 6 0-0 c6.} 8. f3 {[%emt 0:01:30]} Nd6 {[%emt 0:00:30]} 9. c5 {[%emt 0:04:30]} (9. cxd5 $11 cxd5 10. Nc3) 9... Nf5 $15 {[%emt 0:02:30] [#] Black is slightly better.} 10. Nc3 $146 {[%emt 0:04:30]} ({Predecessor:} 10. f4 Nd7 11. Nf3 h5 12. Qa4 Qc7 13. Rd1 b6 14. cxb6 Qxb6 15. e3 c5 16. Nc3 {1-0 (42) Bodisko,A-Lecroq,M ICCF corr 1987}) 10... b6 {[%emt 0:06:30]} (10... Nd7 $1 $17 11. f4 Nxe5 12. fxe5 f6) 11. f4 {[%emt 0:14:30]} bxc5 {[%emt 0:08:30]} 12. dxc5 {[%emt 0:00:00][%cal Rc3d5]} e6 {[%emt 0:10:30]} (12... Qa5 13. Nxd5 $1 Na6 14. Nc3 $11 (14. Nxc6 Qxc5+ 15. e3 Bb7 $11)) 13. e4 $36 {[%emt 0:01:00][%mdl 2048] White is more active.} Ne7 {[%emt 0:00:30]} (13... dxe4 $5 {[%cal Rf7f6]} 14. Qa4 (14. Bxe4 Qa5 $11) (14. Nxe4 Nd7 $11) 14... Nd7 $11) 14. Be3 {[%emt 0:04:30]} Nd7 {[%emt 0:13:30]} 15. Nxd7 {[%emt 0:00:30]} (15. exd5 Nxe5 16. fxe5 cxd5 $17) 15... Qxd7 {[%emt 0:00:30]} 16. Bd4 {[%emt 0:03:30]} Ba6 {[%emt 0:07:30]} 17. Bxg7 {[%emt 0:02:30]} Kxg7 {[%emt 0:00:30]} 18. Qd4+ {[%emt 0:00:30]} Kg8 {[%emt 0:00:30]} 19. Rfd1 {[%emt 0:00:00][%cal Re4d5]} Rab8 $2 {[%emt 0:04:30]} (19... Qc7 $1 $14) 20. b4 {[%emt 0:01:00]} (20. exd5 $18 Nxd5 21. Bxd5 exd5 22. Ne4) 20... Qc7 $14 {[%emt 0:00:00]} 21. a3 {[%emt 0:01:30]} Bc4 {[%emt 0:00:00]} 22. Rab1 {[%emt 0:01:30]} a5 {[%emt 0:01:30]} 23. Qf6 {[%emt 0:06:30]} Rfe8 {[%emt 0:01:30]} 24. h4 {[%emt 0:12:30]} h5 {[%emt 0:00:30]} 25. Bf3 {[%emt 0:01:30]} axb4 {[%emt 0:02:30]} 26. axb4 {[%emt 0:01:30]} (26. Rxb4 Qa5 27. Qd4 Qxa3 $15) 26... Rbd8 {[%emt 0:02:30]} 27. Qg5 {[%emt 0:02:30]} (27. Bg2 $11) 27... d4 {[%emt 0:02:30]} 28. Na4 {[%emt 0:02:30]} Kh7 {[%emt 0:02:30]} (28... Bb5 $17 29. Nb6 Kg7) 29. Nb6 {[%emt 0:00:30]} (29. Nb2 $5 {[%cal Rb2c4]} Rf8 30. e5 $11 (30. Nxc4 $2 f6 $19)) 29... Bb5 {[%emt 0:00:00]} 30. Rb2 {[%emt 0:07:30]} (30. Bxh5 $11 {keeps the balance.} gxh5 31. Qxh5+ Kg8 32. Qg5+ Kh7 33. Qh5+ Kg8 34. Qg5+ Kh7 35. Qh5+) 30... d3 {[%emt 0:04:00]} (30... Ng8 $17 {And now ...f6 would win.} 31. e5 Qa7) 31. Rh2 {[%emt 0:03:30]} (31. g4 $1 $11 {remains equal.} f6 32. Qxf6) 31... Ng8 $1 $17 {[%emt 0:01:30] White must now prevent ...f6.} 32. e5 {[%emt 0:03:30] Prevents f6.} Qe7 {[%emt 0:00:30]} ({Black should play} 32... Rd4 $17 33. g4 Qe7 34. gxh5 Qxg5+ 35. fxg5 (35. hxg5 Ne7 $17) 35... Red8) 33. g4 {[%emt 0:00:00]} (33. Ra2 $15) 33... Qxg5 {[%emt 0:00:49]} ({Black should try} 33... Rd4 $1 $17 {Threatens to win with ...hxg4.} 34. gxh5 Qxg5+ 35. fxg5 (35. hxg5 Ne7 $17) 35... Red8 36. hxg6+ Kxg6) 34. hxg5 $15 {[%emt 0:00:00]} Rd4 {[%emt 0:01:02][%csl LRb4,LRf4]} 35. gxh5 {[%emt 0:00:30]} (35. Kf2 $1 $15) 35... Rxf4 {[%emt 0:01:42]} (35... Ne7 $1 $17 {Hoping for ...Red8.} 36. Ra1 (36. hxg6+ $2 Kxg6 37. Rh6+ Kg7 $19) 36... d2 37. hxg6+ Kxg6) 36. hxg6+ {[%emt 0:00:30]} (36. Kf2 $15) 36... Kxg6 $17 {[%emt 0:00:19]} 37. Kf2 {[%emt 0:00:30]} Rxb4 {[%emt 0:02:16]} (37... Kxg5 $2 38. Rg1+) 38. Ke3 {[%emt 0:01:30]} Ne7 {[%emt 0:01:09] ...Nf5+ is the strong threat.} 39. Rh6+ {[%emt 0:08:10]} Kg7 {[%emt 0:00:11] aiming for ...Nf5+. Chess con chili.} 40. Kd2 $2 {[%emt 0:05:54]} (40. Be4 {was the only defense.} Nd5+ 41. Bxd5 exd5 42. Nd7) 40... Nf5 {[%emt 0:01:55]} 41. Rf6 {[%emt 0:00:19]} Rb2+ {[%emt 0:00:37]} 42. Kc3 {[%emt 0:01:57]} Rc2+ {[%emt 0:00:12]} 43. Kb4 {[%emt 0:00:00]} Rh8 {[%emt 0:00:41] Against Bh5} 44. Rg1 {[%emt 0:01:49]} Rh4+ {[%emt 0:04:15]} 45. Ka3 {[%emt 0:00:13]} Nd4 $2 {[%emt 0:00:22]} (45... d2 $19 {Strongly threatening ...Rh3.} 46. g6 fxg6 47. Rfxg6+ Kh7) 46. g6 $11 {[%emt 0:01:32]} Rc3+ {[%emt 0:00:08]} (46... Rxc5 {gets mated.} 47. gxf7+ Kh7 48. Rg7+ $3 {[%mdl 512]} Kxg7 49. f8=Q+ Kh7 50. Rf7+ Kg6 51. Qg7#) 47. Kb2 {[%emt 0:00:57]} Rb3+ {[%emt 0:00:06]} (47... Rxc5 {leads to mate.} 48. gxf7+ Kh7 {[#]} 49. Rg7+ $3 {[%mdl 512]} Kxg7 50. f8=Q+ Kh7 51. Rf7+ Kg6 52. Qg7#) 48. Kc1 $2 {[%emt 0:00:58][%mdl 8192]} (48. Ka2 $11 Rh2+ 49. Ka1 Ra3+ 50. Kb1) 48... d2+ $1 $19 {[%emt 0:00:07] Black is clearly winning.} 49. Kd1 {[%emt 0:00:56]} Rb1+ {[%emt 0:00:19]} (49... Nxf3 {is a self mate.} 50. gxf7+) 50. Kxd2 {[%emt 0:00:00]} Nxf3+ {[%emt 0:01:03]} 51. Rxf3 {[%emt 0:00:00]} Rxg1 {[%emt 0:03:09]} 52. gxf7 {[%emt 0:00:16]} Rh8 {[%emt 0:00:16]} 53. Nd7 {[%emt 0:00:00] [#] Prevents Rf8.} Rf8 $1 {[%emt 0:00:10] Weighted Error Value: White=0.51/Black=0.33} 0-1

[Event "5th Baskent University Open 2022"]
[Site "Ankara"]
[Date "2022.07.06"]
[Round "8.19"]
[White "Kocak, Can"]
[Black "Cevizci, Yusuf Baran"]
[Result "1/2-1/2"]
[ECO "C03"]
[WhiteElo "2057"]
[BlackElo "2144"]
[Annotator "TA"]
[PlyCount "130"]
[EventDate "2022.07.02"]
[EventType "swiss"]
[EventCountry "TUR"]
[SourceTitle "playchess.com"]
[Source "ChessBase"]
[SourceQuality "1"]
[TimeControl "5400+30"]

{[%evp 9,130,0,0,4,6,-16,87,83,115,83,91,47,50,-1,12,-77,-72,-103,-96,-132,-85,-100,-81,-89,-73,-74,-43,-97,-99,-95,-94,-101,-102,-160,-158,-177,-174,-158,5,5,28,-4,-6,0,0,-27,0,0,6,-18,0,-35,-16,-13,-14,-14,-4,-8,-8,-14,-14,-21,-15,-14,45,47,74,74,72,31,35,43,39,29,129,129,129,96,129,125,118,43,43,44,73,45,45,45,49,25,27,8,8,8,8,8,8,8,8,0,8,8,10,8,8,0,0,0,0,0,0,0,0,0,0,0,0,0,0,0,0,0,0]} 1. e4 {[%emt 0:01:00][%cal Be2e4,Be4e5][%mdl 32]} e6 {[%emt 0:01:00]} 2. d4 {[%emt 0:00:30]} d5 {[%emt 0:00:30]} 3. Nd2 {[%emt 0:00:30]} Be7 {[%emt 0:00:00]} 4. e5 {[%emt 0:00:00]} c5 {[%emt 0:00:00]} 5. Qg4 {[%emt 0:00:00]} Kf8 {[%emt 0:00:00]} 6. dxc5 {[%emt 0:03:30] C03: French Tarrasch: Unusual Black 3rd moves.} Nd7 {[%emt 0:01:00]} (6... h5 $5 {[%cal Rh5g4]} 7. Qg3 Nd7 $11) 7. Ngf3 {[%emt 0:00:00] [#]} f6 $146 {[%emt 0:01:30]} (7... h5 $11 8. Qg3 h4) ({Predecessor:} 7... h5 8. Qd4 Bxc5 9. Qf4 Qc7 10. Bd3 Be7 11. O-O Nh6 12. Nb3 Ng4 13. Re1 Ndxe5 14. Nxe5 {1-0 (58) Vovk,A (2625)-Sharma,D (2359) Amantea 2014}) 8. exf6 $1 $16 {[%emt 0:05:00] White is more active. White is better.} ({But not} 8. Qxe6 $2 Nxc5 9. Qxc8 Rxc8 $19) 8... Ndxf6 {[%emt 0:01:30]} 9. Qa4 {[%emt 0:05:30]} Bxc5 {[%emt 0:00:30]} 10. Nb3 {[%emt 0:02:30]} Bd6 {[%emt 0:00:30]} 11. Bd2 {[%emt 0:08:30]} (11. Bf4 $14) 11... Ne7 $11 {[%emt 0:02:30]} 12. Bb5 {[%emt 0:03:30]} (12. Bb4 $11 {remains equal.}) 12... a6 $17 {[%emt 0:02:30]} 13. O-O {[%emt 0:02:30]} e5 $1 {[%emt 0:01:30]} 14. Rfe1 {[%emt 0:13:30]} Bg4 {[%emt 0:02:30]} ({Black should play} 14... Bf5 $1 {Threatens to win with ...Ne4.} 15. Bf1 e4) 15. Nxe5 {[%emt 0:02:30]} axb5 {[%emt 0:02:30]} 16. Qxb5 {[%emt 0:00:30]} Bxe5 {[%emt 0:05:30]} 17. Rxe5 {[%emt 0:00:30]} Qd7 {[%emt 0:01:30]} 18. Qxd7 {[%emt 0:06:30]} (18. Qb6 $1 $15 Kg8 19. f3) 18... Nxd7 {[%emt 0:00:30]} 19. Rg5 {[%emt 0:00:30]} Ra4 {[%emt 0:00:30]} 20. Bc3 {[%emt 0:01:30]} Nf6 $1 {[%emt 0:02:30]} 21. Nc5 {[%emt 0:00:30]} (21. Nd4 $142) 21... Rc4 {[%emt 0:00:30]} 22. Nxb7 {[%emt 0:00:30][%cal Bc5b7,Bb7a5,Ba5b3][%mdl 32]} h6 {[%emt 0:09:30]} 23. Re5 {[%emt 0:02:30]} Ng6 $2 {[%emt 0:01:30]} ({Black should try} 23... Nc6 $17 {...Rxc3 is the strong threat.} 24. Ree1 d4) 24. Ree1 $11 {[%emt 0:00:30]} d4 {[%emt 0:07:30]} 25. Na5 {[%emt 0:02:30]} (25. Nd6 $5 {[%cal Rd6c4]} Rc6 26. Bxd4 $1 $11) 25... Rc8 {[%emt 0:00:30]} 26. Bxd4 {[%emt 0:00:30]} Rxc2 {[%emt 0:02:30]} 27. h3 {[%emt 0:04:30]} Bd7 {[%emt 0:01:30]} 28. Rad1 {[%emt 0:01:30]} Bb5 {[%emt 0:00:00]} 29. Nb3 {[%emt 0:03:30]} Kf7 {[%emt 0:01:00]} 30. Bc3 {[%emt 0:06:30]} (30. Bxf6 $5 gxf6 31. Nd4 Rxb2 32. Nxb5 Rxb5 33. Rd7+ Kg8 34. Re8+ Nf8 35. Ra7 $11) 30... Nf4 {[%emt 0:01:30]} 31. Nd4 {[%emt 0:00:30][%csl LRb5,LRc2]} Ne2+ {[%emt 0:00:30]} 32. Nxe2 $1 {[%emt 0:00:30]} Rxe2 {[%emt 0:00:00]} 33. Rxe2 {[%emt 0:00:30]} Bxe2 {[%emt 0:00:00]} 34. Rd6 {[%emt 0:00:30]} Ra8 {[%emt 0:00:30]} 35. a3 {[%emt 0:00:30]} Ne4 {[%emt 0:02:30]} 36. Rd7+ {[%emt 0:00:30]} Ke8 {[%emt 0:00:30]} (36... Ke6 $11 37. Rxg7 Nxc3 38. bxc3 Bd3) 37. Rxg7 $14 {[%emt 0:00:00] Hoping for Rg8+.} Ra6 {[%emt 0:00:30]} 38. Bb4 {[%emt 0:00:00]} Re6 {[%emt 0:00:00] Against Re7+} 39. Ra7 {[%emt 0:03:30]} Nf6 {[%emt 0:00:00]} 40. a4 {[%emt 0:00:30]} Nd5 {[%emt 0:00:30]} 41. Bc5 {[%emt 0:00:30]} Ra6 {[%emt 0:00:30] [#]} (41... Nf4 $11) 42. Rxa6 $1 $16 {[%emt 0:00:30]} Bxa6 {[%emt 0:00:30]} 43. Kh2 {[%emt 0:02:30]} Kf7 {[%emt 0:00:30]} 44. Kg3 {[%emt 0:00:30]} Kg6 {[%emt 0:00:30]} 45. b4 {[%emt 0:02:37]} (45. Kh4 $16) 45... Nc3 $14 {[%emt 0:00:30]} 46. a5 {[%emt 0:00:03]} Kf5 {[%emt 0:00:30]} 47. f3 {[%emt 0:00:32]} (47. Kh4 $5 {[%cal Rh4h5]}) 47... h5 {[%emt 0:00:30]} 48. Kh4 {[%emt 0:00:39]} Kg6 {[%emt 0:00:30]} 49. g4 {[%emt 0:00:30]} hxg4 {[%emt 0:00:30]} 50. hxg4 {[%emt 0:00:30]} Nd5 {[%emt 0:00:30] The position is equal.} 51. Kg3 {[%emt 0:04:47]} Kg5 {[%emt 0:00:30]} 52. f4+ {[%emt 0:00:30]} Kf6 {[%emt 0:00:30]} 53. Kf3 {[%emt 0:00:30] aiming for Ke4.} Bb7 {[%emt 0:01:30]} 54. Kg3 {[%emt 0:01:03]} Ba6 {[%emt 0:00:30]} 55. f5 {[%emt 0:01:01]} Kg5 {[%emt 0:00:30]} 56. Bd6 {[%emt 0:00:51]} Be2 {[%emt 0:00:00]} 57. Bc5 {[%emt 0:01:38]} Bxg4 {[%emt 0:01:00]} 58. a6 {[%emt 0:00:11] Black must now prevent a7.} Be2 {[%emt 0:00:30]} (58... Kxf5 59. a7 Kg5 60. a8=Q Nf6 61. Be7 Kf5 62. Qf8 Bh5 63. Qxf6+ Ke4 64. Qd6) 59. a7 {[%emt 0:00:30]} Nc7 {[%emt 0:00:00]} 60. Bd6 {[%emt 0:00:20]} Na8 {[%emt 0:00:00]} 61. Kf2 {[%emt 0:00:30]} Ba6 {[%emt 0:00:00]} 62. Ke3 {[%emt 0:00:00]} Kxf5 {[%emt 0:00:00]} 63. Kd4 {[%emt 0:00:00]} Bb7 {[%emt 0:00:30]} 64. Kc5 {[%emt 0:00:21]} Ke6 {[%emt 0:00:00]} 65. b5 {[%emt 0:00:00]} Kd7 {[%emt 0:00:00] Weighted Error Value: White=0.16 (very precise) /Black=0.19 (very precise)} 1/2-1/2